[Event "*** Titled Tuesday Blitz"]
[Site "Chess.com"]
[Date "2019.11.05"]
[Round "9"]
[White "IMRosen"]
[Black "JSPrepz"]
[Result "0-1"]
[WhiteElo "2603"]
[BlackElo "2819"]
[TimeControl "180+2"]
[EndTime "15:08:25 PST"]
[Termination "JSPrepz won by checkmate"]

1. d4 {[%clk 0:03:01.9]} 1... Nf6 {[%clk 0:02:01.7]} 2. Bf4 {[%clk 0:03:02.4]}
2... c5 {[%clk 0:02:00.2]} 3. e3 {[%clk 0:03:03.9]} 3... g6 {[%clk 0:02:00.8]}
4. Nc3 {[%clk 0:02:54.7]} 4... Bg7 {[%clk 0:01:58.9]} 5. d5 {[%clk 0:02:55.9]}
5... O-O {[%clk 0:01:58.9]} 6. Nf3 {[%clk 0:02:52.1]} 6... Nh5 {[%clk
0:01:59.7]} 7. Be5 {[%clk 0:02:37.5]} 7... Nf6 {[%clk 0:01:36.5]} 8. h3 {[%clk
0:02:24.4]} 8... d6 {[%clk 0:01:37.1]} 9. Bh2 {[%clk 0:02:25.7]} 9... Qa5 {[%clk
0:01:32.5]} 10. Nd2 {[%clk 0:02:22.8]} 10... Nbd7 {[%clk 0:01:25.1]} 11. Nc4
{[%clk 0:02:22.1]} 11... Qc7 {[%clk 0:01:25.9]} 12. a4 {[%clk 0:02:20.8]} 12...
b6 {[%clk 0:01:27.4]} 13. Be2 {[%clk 0:02:17.2]} 13... a6 {[%clk 0:01:28.6]} 14.
O-O {[%clk 0:02:15.7]} 14... Rb8 {[%clk 0:01:30]} 15. Na3 {[%clk 0:02:05.9]}
15... Ne5 {[%clk 0:01:27.5]} 16. e4 {[%clk 0:02:05.1]} 16... h6 {[%clk
0:01:24.7]} 17. f4 {[%clk 0:02:00.9]} 17... Ned7 {[%clk 0:01:25.5]} 18. Kh1
{[%clk 0:02:02.6]} 18... Ne8 {[%clk 0:01:04.9]} 19. Bf3 {[%clk 0:01:48.4]} 19...
Qd8 {[%clk 0:01:06]} 20. Qe2 {[%clk 0:01:47.5]} 20... Nc7 {[%clk 0:01:07.1]} 21.
Rad1 {[%clk 0:01:38.4]} 21... b5 {[%clk 0:01:01.9]} 22. axb5 {[%clk 0:01:17.2]}
22... axb5 {[%clk 0:01:03.8]} 23. Ncxb5 {[%clk 0:01:18.8]} 23... Nxb5 {[%clk
0:00:37.2]} 24. Nxb5 {[%clk 0:01:20.7]} 24... Bxb2 {[%clk 0:00:34.5]} 25. c4
{[%clk 0:01:20.4]} 25... Bg7 {[%clk 0:00:36.1]} 26. Ra1 {[%clk 0:01:16]} 26...
Bxa1 {[%clk 0:00:32.8]} 27. Rxa1 {[%clk 0:01:16.5]} 27... Nb6 {[%clk 0:00:29.8]}
28. e5 {[%clk 0:01:11.4]} 28... Bd7 {[%clk 0:00:31.1]} 29. Nc3 {[%clk
0:01:09.9]} 29... Ra8 {[%clk 0:00:29.8]} 30. Re1 {[%clk 0:01:03.6]} 30... Ra3
{[%clk 0:00:25.7]} 31. Ne4 {[%clk 0:01:01]} 31... Bf5 {[%clk 0:00:26.2]} 32. Nf2
{[%clk 0:00:37.3]} 32... Qa8 {[%clk 0:00:26.1]} 33. g4 {[%clk 0:00:38.2]} 33...
Ra2 {[%clk 0:00:27.6]} 34. Qe3 {[%clk 0:00:36.8]} 34... Ra3 {[%clk 0:00:28.6]}
35. Qe2 {[%clk 0:00:38]} 35... Ra2 {[%clk 0:00:30.1]} 36. Qe3 {[%clk 0:00:36.7]}
36... Nxc4 {[%clk 0:00:31.4]} 37. Qc3 {[%clk 0:00:29.5]} 37... Rc2 {[%clk
0:00:32.6]} 38. Qb3 {[%clk 0:00:20.9]} 38... Rb8 {[%clk 0:00:32.7]} 39. Qxc2
{[%clk 0:00:09.4]} 39... Bxc2 {[%clk 0:00:32.4]} 40. f5 {[%clk 0:00:09.7]} 40...
Nxe5 {[%clk 0:00:31.5]} 41. Bg2 {[%clk 0:00:06.6]} 41... Rb1 {[%clk 0:00:29.7]}
42. Rxb1 {[%clk 0:00:04.1]} 42... Bxb1 {[%clk 0:00:31.6]} 43. Bxe5 {[%clk
0:00:05.6]} 43... dxe5 {[%clk 0:00:33]} 44. d6 {[%clk 0:00:07.5]} 44... Qd8
{[%clk 0:00:32.9]} 45. fxg6 {[%clk 0:00:04.9]} 45... Bxg6 {[%clk 0:00:32.5]} 46.
dxe7 {[%clk 0:00:05.8]} 46... Qxe7 {[%clk 0:00:34.4]} 47. h4 {[%clk 0:00:02.2]}
47... e4 {[%clk 0:00:35.2]} 48. g5 {[%clk 0:00:02.6]} 48... e3 {[%clk
0:00:36.7]} 49. Nd3 {[%clk 0:00:03.9]} 49... e2 {[%clk 0:00:38.2]} 50. Ne1
{[%clk 0:00:05.6]} 50... hxg5 {[%clk 0:00:38.8]} 51. hxg5 {[%clk 0:00:07.5]}
51... Qxg5 {[%clk 0:00:40.1]} 52. Bf3 {[%clk 0:00:08.6]} 52... Qh4+ {[%clk
0:00:41.4]} 53. Kg2 {[%clk 0:00:08.8]} 53... Qxe1 {[%clk 0:00:42.6]} 54. Kh3
{[%clk 0:00:09]} 54... Qf1+ {[%clk 0:00:43.5]} 55. Bg2 {[%clk 0:00:10.3]} 55...
Qf5+ {[%clk 0:00:44.4]} 56. Kh4 {[%clk 0:00:11.1]} 56... e1=Q# {[%clk
0:00:46.3]} 0-1

[Event "*** Titled Tuesday Blitz"]
[Site "Chess.com"]
[Date "2019.11.05"]
[Round "9"]
[White "ChessQueen"]
[Black "NZT72"]
[Result "1-0"]
[WhiteElo "2683"]
[BlackElo "2500"]
[TimeControl "180+2"]
[EndTime "15:08:26 PST"]
[Termination "ChessQueen won by resignation"]

1. e4 {[%clk 0:03:01.9]} 1... c5 {[%clk 0:03:00.6]} 2. c3 {[%clk 0:03:02.5]}
2... d5 {[%clk 0:02:58.5]} 3. exd5 {[%clk 0:03:03.6]} 3... Qxd5 {[%clk
0:02:59.5]} 4. d4 {[%clk 0:03:05.5]} 4... Nf6 {[%clk 0:03:00.4]} 5. Nf3 {[%clk
0:03:06.8]} 5... e6 {[%clk 0:03:01.5]} 6. Be2 {[%clk 0:03:06.6]} 6... cxd4
{[%clk 0:02:59]} 7. cxd4 {[%clk 0:03:01.4]} 7... Nc6 {[%clk 0:02:59.9]} 8. Nc3
{[%clk 0:03:00.6]} 8... Qd6 {[%clk 0:03:00.4]} 9. O-O {[%clk 0:02:59.6]} 9...
Be7 {[%clk 0:03:01.2]} 10. Nb5 {[%clk 0:03:01.1]} 10... Qd8 {[%clk 0:03:01.8]}
11. Bf4 {[%clk 0:03:02.7]} 11... Nd5 {[%clk 0:03:02.1]} 12. Bg3 {[%clk
0:03:04.2]} 12... a6 {[%clk 0:03:03.1]} 13. Nc3 {[%clk 0:03:04.7]} 13... O-O
{[%clk 0:03:01.4]} 14. Rc1 {[%clk 0:03:05.5]} 14... Nf6 {[%clk 0:03:01.8]} 15.
Bd3 {[%clk 0:03:06]} 15... b6 {[%clk 0:02:46.1]} 16. Bb1 {[%clk 0:03:04.4]}
16... Bb7 {[%clk 0:02:45.5]} 17. a3 {[%clk 0:03:04.8]} 17... Rc8 {[%clk
0:02:40.2]} 18. Qd3 {[%clk 0:03:04.8]} 18... g6 {[%clk 0:02:40.1]} 19. Rfd1
{[%clk 0:03:04.2]} 19... Na5 {[%clk 0:02:36.1]} 20. Ba2 {[%clk 0:03:01.3]} 20...
b5 {[%clk 0:02:16.8]} 21. Ne5 {[%clk 0:02:59.2]} 21... Nd5 {[%clk 0:02:14.2]}
22. Ne4 {[%clk 0:02:55.2]} 22... Nc6 {[%clk 0:01:55.3]} 23. Nc5 {[%clk
0:02:51.1]} 23... Bxc5 {[%clk 0:01:41.5]} 24. dxc5 {[%clk 0:02:52.1]} 24... Nxe5
{[%clk 0:01:42.1]} 25. Bxe5 {[%clk 0:02:54]} 25... Qg5 {[%clk 0:01:40.4]} 26.
Qg3 {[%clk 0:02:46.1]} 26... Qxg3 {[%clk 0:01:28.9]} 27. hxg3 {[%clk 0:02:48]}
27... Rfd8 {[%clk 0:01:19]} 28. Bd6 {[%clk 0:02:49.2]} 28... Bc6 {[%clk
0:01:18.1]} 29. Rd4 {[%clk 0:02:42.9]} 29... Ne7 {[%clk 0:00:35.7]} 30. g4
{[%clk 0:02:41.8]} 30... Bb7 {[%clk 0:00:20.9]} 31. Rc3 {[%clk 0:02:35.7]} 31...
Nc6 {[%clk 0:00:19.4]} 32. Rd1 {[%clk 0:02:29]} 32... a5 {[%clk 0:00:18.9]} 33.
Rh3 {[%clk 0:02:26.4]} 33... Ne5 {[%clk 0:00:15.2]} 34. Rd4 {[%clk 0:02:14.7]}
34... Nc4 {[%clk 0:00:14.7]} 35. Bxc4 {[%clk 0:02:09.5]} 35... bxc4 {[%clk
0:00:15.4]} 36. g5 {[%clk 0:02:11]} 36... Bd5 {[%clk 0:00:10.9]} 37. Rdh4 {[%clk
0:02:12]} 37... h5 {[%clk 0:00:11.9]} 38. gxh6 {[%clk 0:02:12.9]} 38... Kh7
{[%clk 0:00:12.8]} 39. g4 {[%clk 0:01:49.2]} 39... Rd7 {[%clk 0:00:13.4]} 40. g5
{[%clk 0:01:44.6]} 40... Rb7 {[%clk 0:00:13]} 41. Rf4 {[%clk 0:01:45.7]} 41...
Rd8 {[%clk 0:00:12.9]} 42. Be5 {[%clk 0:01:38.2]} 42... Rdd7 {[%clk 0:00:11.8]}
43. Bc3 {[%clk 0:01:25.5]} 43... Rb5 {[%clk 0:00:12.1]} 44. Bd4 {[%clk
0:01:21.9]} 44... Bc6 {[%clk 0:00:12.9]} 45. Re3 {[%clk 0:01:08.7]} 45... Rbb7
{[%clk 0:00:07.6]} 46. Kh2 {[%clk 0:01:04.9]} 46... Rb5 {[%clk 0:00:08.1]} 47.
Kg3 {[%clk 0:00:54.8]} 47... Rbb7 {[%clk 0:00:07.6]} 48. Bc3 {[%clk 0:00:53.6]}
48... Rd5 {[%clk 0:00:08]} 49. Re5 {[%clk 0:00:53.7]} 49... Rxe5 {[%clk
0:00:07.8]} 50. Bxe5 {[%clk 0:00:55]} 50... Rb3+ {[%clk 0:00:08.6]} 51. Bc3
{[%clk 0:00:55.7]} 51... Rb7 {[%clk 0:00:09.6]} 52. Rxc4 {[%clk 0:00:56.7]}
52... Bd5 {[%clk 0:00:10.4]} 53. Rf4 {[%clk 0:00:56.4]} 53... Rc7 {[%clk
0:00:10.6]} 54. Bxa5 {[%clk 0:00:57.2]} 54... Rxc5 {[%clk 0:00:09.8]} 55. Rxf7+
{[%clk 0:00:58.4]} 55... Kg8 {[%clk 0:00:11.3]} 56. Rg7+ {[%clk 0:00:59.2]}
56... Kh8 {[%clk 0:00:12]} 57. Bc3 {[%clk 0:00:59.2]} 1-0

[Event "*** Titled Tuesday Blitz"]
[Site "Chess.com"]
[Date "2019.11.05"]
[Round "9"]
[White "Chempiblinka"]
[Black "CarlssonLudvig"]
[Result "0-1"]
[WhiteElo "2291"]
[BlackElo "2470"]
[TimeControl "180+2"]
[EndTime "15:08:27 PST"]
[Termination "CarlssonLudvig won by resignation"]

1. Nf3 {[%clk 0:03:00.9]} 1... e6 {[%clk 0:02:55.6]} 2. d4 {[%clk 0:02:52.1]}
2... Nf6 {[%clk 0:02:53.4]} 3. c4 {[%clk 0:02:52.9]} 3... Bb4+ {[%clk
0:02:54.2]} 4. Nc3 {[%clk 0:02:53.6]} 4... O-O {[%clk 0:02:50.8]} 5. Bg5 {[%clk
0:02:53.7]} 5... h6 {[%clk 0:02:35]} 6. Bh4 {[%clk 0:02:53.8]} 6... d6 {[%clk
0:02:32.7]} 7. e3 {[%clk 0:02:54.6]} 7... Nbd7 {[%clk 0:02:19.5]} 8. Qb3 {[%clk
0:02:54.6]} 8... Bxc3+ {[%clk 0:02:14.4]} 9. Qxc3 {[%clk 0:02:55.3]} 9... b6
{[%clk 0:02:10.5]} 10. Bd3 {[%clk 0:02:55.2]} 10... Bb7 {[%clk 0:02:11.2]} 11.
O-O {[%clk 0:02:56]} 11... e5 {[%clk 0:02:05.4]} 12. Bf5 {[%clk 0:02:52.4]}
12... Re8 {[%clk 0:00:59.5]} 13. Rad1 {[%clk 0:02:31.6]} 13... Bxf3 {[%clk
0:00:39.1]} 14. gxf3 {[%clk 0:02:31.9]} 14... Nf8 {[%clk 0:00:17.5]} 15. Bg3
{[%clk 0:02:07.3]} 15... Nh5 {[%clk 0:00:13.3]} 16. c5 {[%clk 0:01:59.6]} 16...
Nxg3 {[%clk 0:00:13.3]} 17. hxg3 {[%clk 0:02:00.3]} 17... Qf6 {[%clk 0:00:14.2]}
18. Bg4 {[%clk 0:01:59.3]} 18... g6 {[%clk 0:00:12.7]} 19. Kg2 {[%clk
0:01:56.5]} 19... h5 {[%clk 0:00:13.6]} 20. Bh3 {[%clk 0:01:57.6]} 20... exd4
{[%clk 0:00:12.2]} 21. exd4 {[%clk 0:01:57.5]} 21... dxc5 {[%clk 0:00:12.1]} 22.
dxc5 {[%clk 0:01:58.3]} 22... Qxc3 {[%clk 0:00:14]} 23. bxc3 {[%clk 0:01:59.3]}
23... Re2 {[%clk 0:00:15.9]} 24. a4 {[%clk 0:01:56.9]} 24... bxc5 {[%clk
0:00:16.1]} 25. Rd5 {[%clk 0:01:57.2]} 25... Ne6 {[%clk 0:00:10.6]} 26. Bxe6
{[%clk 0:01:56.8]} 26... Rxe6 {[%clk 0:00:12.5]} 27. Rxc5 {[%clk 0:01:57.7]}
27... Ra6 {[%clk 0:00:14.3]} 28. a5 {[%clk 0:01:58]} 28... Re8 {[%clk
0:00:14.1]} 29. Rd1 {[%clk 0:01:56.7]} 29... Re7 {[%clk 0:00:14]} 30. Rd4 {[%clk
0:01:53.4]} 30... Kg7 {[%clk 0:00:15]} 31. Rdc4 {[%clk 0:01:53.8]} 31... Kf8
{[%clk 0:00:11.6]} 32. Rd4 {[%clk 0:01:53.5]} 32... Kg7 {[%clk 0:00:12.3]} 33.
f4 {[%clk 0:01:54.3]} 33... Kf6 {[%clk 0:00:08.5]} 34. f5 {[%clk 0:01:53]} 34...
Kg7 {[%clk 0:00:05.6]} 35. fxg6 {[%clk 0:01:48.5]} 35... fxg6 {[%clk 0:00:06.3]}
36. Rd8 {[%clk 0:01:48.9]} 36... Rf7 {[%clk 0:00:07.2]} 37. Rc8 {[%clk
0:01:49.6]} 37... Kh6 {[%clk 0:00:07.6]} 38. f4 {[%clk 0:01:50]} 38... Re7
{[%clk 0:00:08]} 39. Kf3 {[%clk 0:01:50.7]} 39... Rd7 {[%clk 0:00:05]} 40. Ke3
{[%clk 0:01:50.9]} 40... Re7+ {[%clk 0:00:06.5]} 41. Kd4 {[%clk 0:01:51.9]}
41... Rd7+ {[%clk 0:00:08.4]} 42. Kc4 {[%clk 0:01:53.2]} 42... Re7 {[%clk
0:00:03.8]} 43. Kb5 {[%clk 0:01:53.5]} 43... Rae6 {[%clk 0:00:03.1]} 44. R8xc7
{[%clk 0:01:54.4]} 44... a6+ {[%clk 0:00:04.3]} 45. Kb4 {[%clk 0:01:53]} 45...
Rxc7 {[%clk 0:00:05.6]} 46. Rxc7 {[%clk 0:01:53.8]} 46... Re3 {[%clk 0:00:07.5]}
47. Rc6 {[%clk 0:01:53.8]} 47... Rxg3 {[%clk 0:00:09.1]} 48. f5 {[%clk
0:01:54.6]} 48... h4 {[%clk 0:00:09.6]} 49. Rxa6 {[%clk 0:01:54]} 49... h3
{[%clk 0:00:10.7]} 50. fxg6 {[%clk 0:01:54.9]} 50... Rxg6 {[%clk 0:00:11.7]} 51.
Ra8 {[%clk 0:01:50.6]} 51... Rg7 {[%clk 0:00:12.9]} 52. Rd8 {[%clk 0:01:45.4]}
52... h2 {[%clk 0:00:13.4]} 53. Rd1 {[%clk 0:01:42.4]} 53... Rg1 {[%clk
0:00:14.3]} 54. Rd8 {[%clk 0:01:42.9]} 54... Kg7 {[%clk 0:00:14.9]} 55. Rd7+
{[%clk 0:01:43.9]} 55... Kg8 {[%clk 0:00:14.1]} 56. Rd8+ {[%clk 0:01:44.5]}
56... Kf7 {[%clk 0:00:13.8]} 57. Rh8 {[%clk 0:01:44.8]} 57... h1=Q {[%clk
0:00:14.8]} 58. Rxh1 {[%clk 0:01:45.7]} 58... Rxh1 {[%clk 0:00:16.7]} 59. Kc5
{[%clk 0:01:47]} 59... Ke7 {[%clk 0:00:17.8]} 60. Kc6 {[%clk 0:01:47.6]} 60...
Ra1 {[%clk 0:00:17.8]} 61. Kb6 {[%clk 0:01:47.9]} 61... Kd6 {[%clk 0:00:17.4]}
62. a6 {[%clk 0:01:46.3]} 62... Rb1+ {[%clk 0:00:18.6]} 63. Ka7 {[%clk
0:01:43.7]} 63... Kc7 {[%clk 0:00:19]} 64. c4 {[%clk 0:01:44.3]} 64... Ra1
{[%clk 0:00:19.1]} 65. c5 {[%clk 0:01:45.3]} 65... Ra2 {[%clk 0:00:21]} 66. c6
{[%clk 0:01:43.3]} 66... Ra1 {[%clk 0:00:22.3]} 0-1

[Event "*** Titled Tuesday Blitz"]
[Site "Chess.com"]
[Date "2019.11.05"]
[Round "9"]
[White "Vuk2000"]
[Black "FelixJoseYnojosa"]
[Result "1-0"]
[WhiteElo "2812"]
[BlackElo "2646"]
[TimeControl "180+2"]
[EndTime "15:08:31 PST"]
[Termination "Vuk2000 won by resignation"]

1. e4 {[%clk 0:03:01.9]} 1... c5 {[%clk 0:03:00.8]} 2. Nc3 {[%clk 0:03:02.5]}
2... Nc6 {[%clk 0:03:02]} 3. g3 {[%clk 0:03:03.7]} 3... e6 {[%clk 0:03:02.7]} 4.
Bg2 {[%clk 0:03:05.1]} 4... Nf6 {[%clk 0:03:04.4]} 5. Nge2 {[%clk 0:03:00.1]}
5... d5 {[%clk 0:03:05.9]} 6. exd5 {[%clk 0:03:01.1]} 6... exd5 {[%clk
0:03:06.8]} 7. d4 {[%clk 0:03:02.2]} 7... Bg4 {[%clk 0:02:45.5]} 8. Be3 {[%clk
0:02:56.1]} 8... Qb6 {[%clk 0:01:54.3]} 9. Na4 {[%clk 0:01:44.4]} 9... Qa5+
{[%clk 0:01:20.2]} 10. c3 {[%clk 0:01:44.6]} 10... cxd4 {[%clk 0:01:18.9]} 11.
Bxd4 {[%clk 0:01:44.3]} 11... Nxd4 {[%clk 0:00:44.7]} 12. Qxd4 {[%clk
0:01:38.8]} 12... Bd7 {[%clk 0:00:19.5]} 13. b3 {[%clk 0:01:30.3]} 13... Rc8
{[%clk 0:00:19.5]} 14. O-O {[%clk 0:01:25.3]} 14... Ba3 {[%clk 0:00:13]} 15.
Qe5+ {[%clk 0:01:24.4]} 15... Kf8 {[%clk 0:00:13.5]} 16. Nf4 {[%clk 0:01:21.5]}
16... b5 {[%clk 0:00:11.1]} 17. Nxd5 {[%clk 0:01:19]} 17... bxa4 {[%clk
0:00:12.5]} 18. Nxf6 {[%clk 0:01:20.2]} 18... Qd8 {[%clk 0:00:08]} 19. Nxd7+
{[%clk 0:01:10.7]} 19... Qxd7 {[%clk 0:00:08.8]} 20. Rad1 {[%clk 0:01:11.4]}
20... Qe6 {[%clk 0:00:09.3]} 21. Qa5 {[%clk 0:01:08.9]} 21... g6 {[%clk
0:00:05.8]} 22. Rfe1 {[%clk 0:01:00]} 22... Qf6 {[%clk 0:00:04.6]} 23. Qxa4
{[%clk 0:00:51.2]} 23... Bc5 {[%clk 0:00:05.4]} 24. Re2 {[%clk 0:00:45.5]} 24...
Kg7 {[%clk 0:00:06.4]} 25. Qf4 {[%clk 0:00:42.4]} 25... Qxf4 {[%clk 0:00:06.6]}
26. gxf4 {[%clk 0:00:43.7]} 26... Rhd8 {[%clk 0:00:08.2]} 27. Bd5 {[%clk
0:00:44.7]} 27... Bd6 {[%clk 0:00:08.1]} 28. c4 {[%clk 0:00:44.2]} 28... f5
{[%clk 0:00:06.8]} 29. Rd4 {[%clk 0:00:44.9]} 29... Rc7 {[%clk 0:00:06.2]} 30.
Re6 {[%clk 0:00:43.5]} 30... Bc5 {[%clk 0:00:07.2]} 31. Rd3 {[%clk 0:00:43.4]}
31... Rf8 {[%clk 0:00:05.4]} 32. Ra6 {[%clk 0:00:31.6]} 32... Rd8 {[%clk
0:00:04.7]} 33. a3 {[%clk 0:00:30.9]} 33... Re7 {[%clk 0:00:05.9]} 34. b4 {[%clk
0:00:29.7]} 34... Bd6 {[%clk 0:00:07]} 35. Bf3 {[%clk 0:00:27.8]} 35... Bc7
{[%clk 0:00:08.1]} 36. Rxd8 {[%clk 0:00:27.5]} 36... Bxd8 {[%clk 0:00:10]} 37.
c5 {[%clk 0:00:29]} 37... h6 {[%clk 0:00:05.3]} 38. Rc6 {[%clk 0:00:28.8]} 38...
Rd7 {[%clk 0:00:06.3]} 39. Rc8 {[%clk 0:00:27.4]} 39... Bc7 {[%clk 0:00:07.2]}
40. Bc6 {[%clk 0:00:18.9]} 40... Re7 {[%clk 0:00:07.5]} 41. b5 {[%clk
0:00:17.8]} 41... Bxf4 {[%clk 0:00:08.3]} 42. b6 {[%clk 0:00:18.7]} 42... axb6
{[%clk 0:00:10.2]} 43. cxb6 {[%clk 0:00:20.6]} 43... Re1+ {[%clk 0:00:10]} 44.
Kg2 {[%clk 0:00:21.4]} 44... Rb1 {[%clk 0:00:11.9]} 45. b7 {[%clk 0:00:22.2]}
45... Rb2 {[%clk 0:00:12.6]} 46. a4 {[%clk 0:00:22.2]} 46... Kf6 {[%clk
0:00:09.6]} 47. a5 {[%clk 0:00:23.3]} 47... Ra2 {[%clk 0:00:11.1]} 48. Ra8
{[%clk 0:00:23.1]} 48... Rc2 {[%clk 0:00:04.1]} 49. a6 {[%clk 0:00:24.4]} 49...
Rxc6 {[%clk 0:00:05.1]} 50. a7 {[%clk 0:00:25.9]} 50... Rb6 {[%clk 0:00:04.6]}
51. b8=Q {[%clk 0:00:27.2]} 51... Bxb8 {[%clk 0:00:05.4]} 52. Rxb8 {[%clk
0:00:28.6]} 1-0

[Event "*** Titled Tuesday Blitz"]
[Site "Chess.com"]
[Date "2019.11.05"]
[Round "9"]
[White "Saitama_Hero"]
[Black "Azatic"]
[Result "0-1"]
[WhiteElo "2355"]
[BlackElo "2607"]
[TimeControl "180+2"]
[EndTime "15:08:38 PST"]
[Termination "Azatic won by resignation"]

1. b3 {[%clk 0:03:00]} 1... Nf6 {[%clk 0:02:59]} 2. Bb2 {[%clk 0:03:01.9]} 2...
e6 {[%clk 0:03:00.2]} 3. Nf3 {[%clk 0:03:03.8]} 3... Be7 {[%clk 0:03:01]} 4. e3
{[%clk 0:03:05.7]} 4... O-O {[%clk 0:03:00.9]} 5. c4 {[%clk 0:03:07.2]} 5... d5
{[%clk 0:03:01.5]} 6. Qc2 {[%clk 0:03:06.3]} 6... a5 {[%clk 0:02:59.8]} 7. g4
{[%clk 0:03:03.4]} 7... a4 {[%clk 0:02:53.1]} 8. g5 {[%clk 0:03:00.5]} 8... a3
{[%clk 0:02:39.4]} 9. Bd4 {[%clk 0:01:59.9]} 9... Nfd7 {[%clk 0:02:19.1]} 10.
cxd5 {[%clk 0:01:56.3]} 10... exd5 {[%clk 0:02:14.2]} 11. Bd3 {[%clk 0:01:54.8]}
11... g6 {[%clk 0:02:11.9]} 12. h4 {[%clk 0:01:44.7]} 12... Nc6 {[%clk 0:02:10]}
13. Nc3 {[%clk 0:01:36.8]} 13... Nb4 {[%clk 0:02:05.7]} 14. Qb1 {[%clk
0:01:33.8]} 14... c5 {[%clk 0:02:06]} 15. Be5 {[%clk 0:01:15.5]} 15... Nxe5
{[%clk 0:02:05.2]} 16. Nxe5 {[%clk 0:01:17.4]} 16... Qd6 {[%clk 0:02:03.7]} 17.
f4 {[%clk 0:01:13.7]} 17... d4 {[%clk 0:01:27.9]} 18. Ne4 {[%clk 0:01:13.1]}
18... Nxd3+ {[%clk 0:01:23]} 19. Qxd3 {[%clk 0:01:12.7]} 19... Qd8 {[%clk
0:01:16.7]} 20. Ng3 {[%clk 0:00:09]} 20... dxe3 {[%clk 0:01:12.6]} 21. Qxe3
{[%clk 0:00:10.9]} 21... Qd4 {[%clk 0:00:57.9]} 22. Qxd4 {[%clk 0:00:08.2]}
22... cxd4 {[%clk 0:00:59.8]} 23. O-O {[%clk 0:00:08.3]} 23... f6 {[%clk
0:00:56.2]} 24. Nd3 {[%clk 0:00:06.4]} 24... fxg5 {[%clk 0:00:53.1]} 25. hxg5
{[%clk 0:00:08]} 25... Bd7 {[%clk 0:00:49.4]} 26. Ne5 {[%clk 0:00:04.6]} 26...
Bb5 {[%clk 0:00:45]} 27. Rf2 {[%clk 0:00:05.1]} 27... Rae8 {[%clk 0:00:40.1]}
28. Re1 {[%clk 0:00:06.4]} 28... Bd6 {[%clk 0:00:37.8]} 29. Ne4 {[%clk
0:00:07.4]} 29... Bxe5 {[%clk 0:00:22.1]} 30. fxe5 {[%clk 0:00:09.3]} 30... Rxf2
{[%clk 0:00:20.7]} 31. Kxf2 {[%clk 0:00:11.2]} 31... Kg7 {[%clk 0:00:22]} 32.
Nf6 {[%clk 0:00:12.3]} 32... Re6 {[%clk 0:00:22.6]} 33. Re4 {[%clk 0:00:13.1]}
33... Bc6 {[%clk 0:00:23.3]} 34. Rh4 {[%clk 0:00:10.7]} 34... Rxe5 {[%clk
0:00:21.6]} 35. Rxh7+ {[%clk 0:00:10]} 35... Kf8 {[%clk 0:00:23]} 36. Rc7 {[%clk
0:00:09.8]} 36... Rf5+ {[%clk 0:00:20.3]} 37. Ke2 {[%clk 0:00:11.1]} 37... Bb5+
{[%clk 0:00:18.1]} 38. Kd1 {[%clk 0:00:09.1]} 38... Rf1+ {[%clk 0:00:11.5]} 39.
Kc2 {[%clk 0:00:10]} 39... d3+ {[%clk 0:00:12.7]} 40. Kc3 {[%clk 0:00:11.5]}
40... Rc1+ {[%clk 0:00:13.8]} 41. Kb4 {[%clk 0:00:12.9]} 41... Rxc7 {[%clk
0:00:15.2]} 42. Kxb5 {[%clk 0:00:14.5]} 42... Kf7 {[%clk 0:00:15.6]} 43. Ne4
{[%clk 0:00:06.5]} 43... Rc2 {[%clk 0:00:16.1]} 44. Kb4 {[%clk 0:00:06.9]} 44...
Rxa2 {[%clk 0:00:16]} 45. Nd6+ {[%clk 0:00:04]} 45... Ke6 {[%clk 0:00:16.3]} 46.
Nxb7 {[%clk 0:00:05.9]} 46... Rxd2 {[%clk 0:00:16.2]} 47. Kxa3 {[%clk
0:00:04.9]} 47... Rc2 {[%clk 0:00:16.1]} 48. Na5 {[%clk 0:00:05.1]} 48... d2
{[%clk 0:00:16.6]} 0-1

[Event "*** Titled Tuesday Blitz"]
[Site "Chess.com"]
[Date "2019.11.05"]
[Round "9"]
[White "DanielNaroditsky"]
[Black "chito89"]
[Result "1-0"]
[WhiteElo "2963"]
[BlackElo "2751"]
[TimeControl "180+2"]
[EndTime "15:08:39 PST"]
[Termination "DanielNaroditsky won by resignation"]

1. d4 {[%clk 0:03:01.9]} 1... Nf6 {[%clk 0:02:57.1]} 2. Nc3 {[%clk 0:03:03.5]}
2... d5 {[%clk 0:02:50.6]} 3. Bf4 {[%clk 0:03:04.2]} 3... e6 {[%clk 0:02:48.3]}
4. e3 {[%clk 0:03:04.8]} 4... a6 {[%clk 0:02:48.3]} 5. Bd3 {[%clk 0:03:05.9]}
5... c5 {[%clk 0:02:49.5]} 6. dxc5 {[%clk 0:03:07.4]} 6... Bxc5 {[%clk
0:02:44.8]} 7. Nf3 {[%clk 0:03:08.5]} 7... Nc6 {[%clk 0:02:38.2]} 8. O-O {[%clk
0:03:09.5]} 8... Bd6 {[%clk 0:02:35.8]} 9. Bxd6 {[%clk 0:03:07.7]} 9... Qxd6
{[%clk 0:02:36.3]} 10. e4 {[%clk 0:03:09.6]} 10... d4 {[%clk 0:02:32.9]} 11. Ne2
{[%clk 0:03:08.9]} 11... e5 {[%clk 0:02:34.3]} 12. Ng3 {[%clk 0:03:10.2]} 12...
O-O {[%clk 0:02:31.2]} 13. a3 {[%clk 0:03:08.3]} 13... g6 {[%clk 0:02:16.6]} 14.
Qd2 {[%clk 0:03:04.2]} 14... Kg7 {[%clk 0:02:09.3]} 15. Nh4 {[%clk 0:03:01.2]}
15... h6 {[%clk 0:01:55.7]} 16. f4 {[%clk 0:02:58.8]} 16... Ng4 {[%clk
0:01:41.9]} 17. f5 {[%clk 0:02:49.3]} 17... Qf6 {[%clk 0:01:36.9]} 18. Nf3
{[%clk 0:02:36.9]} 18... Ne3 {[%clk 0:01:38.3]} 19. Rfe1 {[%clk 0:02:33.4]}
19... h5 {[%clk 0:01:28.7]} 20. h4 {[%clk 0:02:25]} 20... b5 {[%clk 0:01:17.7]}
21. Rxe3 {[%clk 0:02:26.2]} 21... dxe3 {[%clk 0:01:18.1]} 22. Qxe3 {[%clk
0:02:28.1]} 22... Nd4 {[%clk 0:01:15.2]} 23. Nxd4 {[%clk 0:02:25.5]} 23... exd4
{[%clk 0:01:15.4]} 24. Qf4 {[%clk 0:02:27.2]} 24... Re8 {[%clk 0:01:12.7]} 25.
Rf1 {[%clk 0:02:28.3]} 25... Bb7 {[%clk 0:01:05.3]} 26. fxg6 {[%clk 0:02:03.8]}
26... Qxf4 {[%clk 0:01:03.5]} 27. Nxh5+ {[%clk 0:02:05.2]} 27... Kxg6 {[%clk
0:01:04.9]} 28. Nxf4+ {[%clk 0:02:06.6]} 28... Kh6 {[%clk 0:01:01.8]} 29. Nd5
{[%clk 0:01:56.9]} 29... Bxd5 {[%clk 0:00:58.9]} 30. exd5 {[%clk 0:01:58.8]}
30... Kg7 {[%clk 0:00:59.8]} 31. Rf4 {[%clk 0:01:57.8]} 31... Re5 {[%clk
0:00:51.2]} 32. Rxd4 {[%clk 0:01:58.8]} 32... Rd8 {[%clk 0:00:43.7]} 33. Be4
{[%clk 0:02:00.2]} 33... Kf6 {[%clk 0:00:34.3]} 34. Bf3 {[%clk 0:01:54.2]} 34...
Ke7 {[%clk 0:00:32.3]} 35. h5 {[%clk 0:01:54.6]} 35... Rc8 {[%clk 0:00:33.2]}
36. c3 {[%clk 0:01:46.7]} 36... Rc4 {[%clk 0:00:34.5]} 37. Rd3 {[%clk
0:01:25.1]} 37... Kd6 {[%clk 0:00:34]} 38. Kf2 {[%clk 0:01:25.2]} 38... a5
{[%clk 0:00:28.1]} 39. g4 {[%clk 0:01:16.2]} 39... f5 {[%clk 0:00:28.9]} 40. g5
{[%clk 0:01:15.6]} 40... f4 {[%clk 0:00:26.4]} 41. g6 {[%clk 0:01:12]} 41... Rg5
{[%clk 0:00:27.8]} 42. Be2 {[%clk 0:00:54.9]} 42... b4 {[%clk 0:00:26.1]} 43.
axb4 {[%clk 0:00:54.9]} 43... axb4 {[%clk 0:00:26.8]} 44. Rh3 {[%clk 0:00:52.4]}
44... Rc8 {[%clk 0:00:21.9]} 45. c4 {[%clk 0:00:52.7]} 45... Rf8 {[%clk
0:00:19.6]} 46. Bd3 {[%clk 0:00:49]} 46... f3 {[%clk 0:00:18.8]} 47. Rxf3 {[%clk
0:00:40.2]} 47... Rxf3+ {[%clk 0:00:17.4]} 48. Kxf3 {[%clk 0:00:42.1]} 48...
Rxh5 {[%clk 0:00:18.6]} 49. Kf4 {[%clk 0:00:34]} 49... Rh2 {[%clk 0:00:18.7]}
50. Be4 {[%clk 0:00:30]} 50... Rh4+ {[%clk 0:00:15.5]} 51. Kf5 {[%clk
0:00:27.5]} 51... Ke7 {[%clk 0:00:15.7]} 52. d6+ {[%clk 0:00:23]} 52... Kf8
{[%clk 0:00:12.3]} 53. d7 {[%clk 0:00:21.4]} 1-0